Cogmind - Beta 10.2 @@@ ROGUE MODE // 2020.11.04 @ 20:24:37 // Winter2019/RPGLIKE Player: Chiefwannatoke Result: Destroyed by D-53 Grenadier with Mini Grenade Launcher Performance ------------- Evolutions (0) 0 Regions Visited (4) 800 Robots Destroyed (12) 60 Value Destroyed (194) 194 Prototype IDs (3) 60 Alien Tech Used (0) 0 Bonus (33) 33 TOTAL SCORE: 1147 Bonus ------- Follower Combat Kills 33 Cogmind --------- Core Integrity 0/600 Matter 295/300 Energy 265/265 System Corruption 0% Temperature Cool (0) Movement Walking (120) Location -9/Mines Parts ------- > --- POWER (1) -------- Improved Ion Engine > --- PROPULSION (2) --- Aluminum Leg Aluminum Leg > --- UTILITY (4) ------ Sensor Array Seismic Analyzer Targeting Computer > --- WEAPON (2) ------- Small Laser > --- INVENTORY (1) ---- Ion Engine Peak State ------------ > --- POWER ------------ Improved Ion Engine > --- PROPULSION ------- Aluminum Leg Aluminum Leg > --- UTILITY ---------- Sensor Array Seismic Analyzer Targeting Computer > --- WEAPON ----------- EM Pulse Gun Small Laser > --- INVENTORY -------- Ion Engine [Rating: 9] Favorites ----------- Power Ion Engine Engine Ion Engine Propulsion Aluminum Leg Leg Aluminum Leg Utility Targeting Computer Device Sensor Array Processor Targeting Computer Weapon Small Laser Energy Gun Small Laser Build | -11 -10 -10 -10 -9 ------- Run | Scr Mat Min Exi Min Slots Evolved 5 | 4 . 1 . . Power . | . . . . . Propulsion 1 | 1 . . . . Utility 3 | 2 . 1 . . Weapon 1 | 1 . . . . Parts Attached 10 | 5 3 2 . . Power 3 | 1 1 1 . . Engine 3 | 1 1 1 . . Core . | . . . . . Reactor . | . . . . . Propulsion 2 | 2 . . . . Treads . | . . . . . Leg 2 | 2 . . . . Wheel . | . . . . . Hover . | . . . . . Flight . | . . . . . Utility 3 | . 2 1 . . Device 1 | . 1 . . . Storage . | . . . . . Processor 2 | . 1 1 . . Hackware . | . . . . . Protection . | . . . . . Artifact . | . . . . . Weapon 2 | 2 . . . . Energy Gun 2 | 2 . . . . Energy Cannon . | . . . . . Ballistic Gun . | . . . . . Ballistic Cannon . | . . . . . Launcher . | . . . . . Special Weapon . | . . . . . Impact Weapon . | . . . . . Slashing Weapon . | . . . . . Piercing Weapon . | . . . . . Special Melee Weapon . | . . . . . Unidentified Prototypes . | . . . . . Parts Lost 1 | . . . . 1 Power . | . . . . . Propulsion . | . . . . . Utility . | . . . . . Weapon 1 | . . . . 1 Highest Loss Streak 1 | . . . . 1 Average Slot Usage (%) 90 | . 79 99 88 87 Engine 11 | . 12 11 11 11 Leg 24 | . 25 24 22 22 Device 9 | . 6 11 11 11 Processor 18 | . 10 24 22 22 Energy Gun 24 | . 25 24 22 21 Naked Turns . | . . . . . Heaviest Build 11 | 8 9 11 11 11 Greatest Support 20 | 20 20 20 20 20 Greatest Overweight (x) . | . . . . . Average Overweight (x) . | . . . . . Largest Inventory Capacity 1 | 1 1 1 1 1 Average Capacity 1 | 1 1 1 1 1 Most Carried 1 | . . 1 1 1 Average Carried . | . . . 1 1 Final Capacity 1 | 1 1 1 1 1 Final Carried 1 | . . 1 1 1 Class Distribution -------------------- 100% | Mutant Dominant Class ---------------- Mutant | -10/Materials Mutant | -10/Mines Mutant | -10/Exiles Mutant | -9/Mines Resources | -11 -10 -10 -10 -9 ----------- Run | Scr Mat Min Exi Min Matter Collected 290 | 209 48 33 . . Remotely . | . . . . . Salvage Created 133 | . 108 . . 25 Parts 21 | . 16 2 . 3 Haulers Intercepted . | . . . . . Recyclers Shooed . | . . . . . Parts Field Recycled . | . . . . . Retrieved Matter . | . . . . . Parts Self-Destructed . | . . . . . Prevented . | . . . . . Kills | -11 -10 -10 -10 -9 ------- Run | Scr Mat Min Exi Min Combat Hostiles Destroyed 11 | . 8 1 . 2 Guns 11 | . 8 1 . 2 Classes Destroyed 5 | . 2 1 . 2 Watcher 1 | . 1 . . . Swarmer 8 | . 8 . . . Sentry 1 | . . 1 . . Demolisher 1 | . . . . 1 Assembled 1 | . . . . 1 Best Kill Streak 3 | . 3 1 . 1 Combat Bots Only 3 | . 3 1 . 1 Max Kills in Single Turn 2 | . 2 1 . 1 Gunslinging 1 | . 1 . . . Exploded . | . . . . . Melee . | . . . . . Uniques/NPCs Destroyed . | . . . . . Combat | -11 -10 -10 -10 -9 -------- Run | Scr Mat Min Exi Min Damage Taken 878 | . 121 31 . 726 Core 720 | . 95 24 . 601 Absorbed by Shields . | . . . . . Redirected to Core 531 | . 70 24 . 437 Core Remaining (%) 100 | 100 . . . . Volleys Fired 36 | . 21 2 . 13 Largest 2 | . 2 2 . 2 Hottest 80 | . 80 80 . 80 Shots Fired 65 | . 40 4 . 21 Gun 65 | . 40 4 . 21 Cannon . | . . . . . Launcher . | . . . . . Special . | . . . . . Kinetic . | . . . . . Thermal 34 | . 19 2 . 13 Explosive . | . . . . . Electromagnetic 31 | . 21 2 . 8 Robot Hit Streak 12 | . 10 1 . 12 Robot Miss Streak 5 | . 5 3 . 3 Penetration Max . | . . . . . Secondary Targets 2 | . 2 . . . Max Gunslinging Chain 1 | . 1 . . . Shots Hit Robots 38 | . 22 1 . 15 Core Hits 16 | . 11 1 . 4 Critical Hits . | . . . . . Critical Kills . | . . . . . Critical Parts Destroyed . | . . . . . Melee Attacks . | . . . . . Impact . | . . . . . Slashing . | . . . . . Piercing . | . . . . . Sneak Attacks . | . . . . . Combat Hostiles . | . . . . . Follow-up Attacks . | . . . . . Damage Inflicted 434 | . 258 11 . 165 Guns 414 | . 238 11 . 165 Cannons . | . . . . . Explosions 20 | . 20 . . . Melee . | . . . . . Ramming . | . . . . . Kinetic . | . . . . . Thermal 205 | . 107 . . 98 Explosive . | . . . . . Electromagnetic 229 | . 151 11 . 67 Impact . | . . . . . Slashing . | . . . . . Piercing . | . . . . . Highest Corruption . | . . . . . Average Corruption . | . . . . . Corruption Purged . | . . . . . Overload Shots . | . . . . . Overflow Damage . | . . . . . Projectiles . | . . . . . Explosions . | . . . . . Melee . | . . . . . Knockbacks . | . . . . . Impact . | . . . . . Kinetic . | . . . . . Secondary . | . . . . . Self-Inflicted Damage . | . . . . . Shots . | . . . . . Rammed . | . . . . . Targets Rammed . | . . . . . Kicked . | . . . . . Crushed . | . . . . . Highest Temperature 29 | . . 9 . 29 Average Temperature 6 | . . 9 . 6 Received Heat Transfer 109 | . . 9 . 100 Siege Activations . | . . . . . Robots Corrupted . | . . . . . Combat Hostiles . | . . . . . Parts Fried 3 | . 3 . . . Impact Corruptions . | . . . . . Robots Melted . | . . . . . Combat Hostiles . | . . . . . Parts Melted . | . . . . . Heat Transferred 475 | . 250 . . 225 Parts Sabotaged . | . . . . . Parts Stolen . | . . . . . Parts Stripped . | . . . . . Power Chain Reactions 1 | . 1 . . . Missiles Intercepted . | . . . . . Alert | -11 -10 -10 -10 -9 ------- Run | Scr Mat Min Exi Min Peak Influence 293 | . 293 106 . 20 Initial 45 | . . 45 . . Average 68 | . 144 30 . 1 Maximum Alert Level 1 | . 1 . . . Low Security (%) 91 | 100 77 100 . 100 Level 1 8 | . 22 . . . Level 2 . | . . . . . Level 3 . | . . . . . Level 4 . | . . . . . Level 5 . | . . . . . High Security . | . . . . . Max Security . | . . . . . Squads Dispatched 1 | . 1 . . . Investigation 1 | . 1 . . . Extermination . | . . . . . Reinforcement . | . . . . . Assault . | . . . . . Garrison . | . . . . . Intercept . | . . . . . Construction Impeded . | . . . . . Haulers Reinforced . | . . . . . Stealth | -11 -10 -10 -10 -9 --------- Run | Scr Mat Min Exi Min Distress Signals . | . . . . . Communications Jammed . | . . . . . Distress Signals . | . . . . . Times Spotted 37 | . 14 2 . 21 Peak Tracking Total 17 | . 4 2 . 17 Tactical Retreats 1 | . 1 . . . Traps | -11 -10 -10 -10 -9 ------- Run | Scr Mat Min Exi Min Traps Triggered 2 | . 2 . . . Indirectly . | . . . . . Trap Hack Attempts . | . . . . . Triggered . | . . . . . Disarmed . | . . . . . Reprogrammed . | . . . . . Reused . | . . . . . Traps Extracted . | . . . . . Installed . | . . . . . Triggered . | . . . . . Machines | -11 -10 -10 -10 -9 ---------- Run | Scr Mat Min Exi Min Machines Disabled . | . . . . . Max in Single Turn . | . . . . . Machines Sabotaged . | . . . . . Garrisons Compromised . | . . . . . Overloaded Fab Kills . | . . . . . Fab Network Shutdowns . | . . . . . Hacking | -11 -10 -10 -10 -9 --------- Run | Scr Mat Min Exi Min Machines Accessed 5 | . 5 . . . Terminals 5 | . 5 . . . Fabricators . | . . . . . Repair Stations . | . . . . . Recycling Units . | . . . . . Scanalyzers . | . . . . . Garrison Access . | . . . . . Total Hacks 13 | . 13 . . . Successful 10 | . 10 . . . Failed 3 | . 3 . . . Catastrophic . | . . . . . Database Lockouts . | . . . . . Manual . | . . . . . Terminals 13 | . 13 . . . Fabricators . | . . . . . Repair Stations . | . . . . . Recycling Units . | . . . . . Scanalyzers . | . . . . . Garrison Access . | . . . . . Terminal Hacks 10 | . 10 . . . Record 1 | . 1 . . . Prototype ID Bank 3 | . 3 . . . Branch Access Points 1 | . 1 . . . Locate Traps 3 | . 3 . . . Recall Investigation 1 | . 1 . . . Registered Components 1 | . 1 . . . Fabricator Hacks . | . . . . . Repair Station Hacks . | . . . . . Recycling Unit Hacks . | . . . . . Scanalyzer . | . . . . . Garrison Access Hacks . | . . . . . Unauthorized Hacks . | . . . . . Terminals . | . . . . . Fabricators . | . . . . . Repair Stations . | . . . . . Recycling Units . | . . . . . Scanalyzers . | . . . . . Garrison Access . | . . . . . Data Cores Recovered . | . . . . . Used . | . . . . . Hacking Detections 3 | . 3 . . . Full Trace Events 1 | . 1 . . . Feedback Events . | . . . . . Feedback Blocked . | . . . . . Robot Schematics Acquired . | . . . . . Robots Built . | . . . . . Matter . | . . . . . Time . | . . . . . Total Robot Build Rating . | . . . . . Part Schematics Acquired . | . . . . . Parts Built . | . . . . . Matter . | . . . . . Time . | . . . . . Total Part Build Rating . | . . . . . Parts Repaired . | . . . . . Time . | . . . . . Parts Recycled . | . . . . . Recycled Matter . | . . . . . Retrieved Matter . | . . . . . Retrieved Components . | . . . . . Parts Scanalyzed . | . . . . . Part Schematics Acquired . | . . . . . Parts Damaged . | . . . . . Bothacking | -11 -10 -10 -10 -9 ------------ Run | Scr Mat Min Exi Min Used RIF Installer . | . . . . . Robots Hacked . | . . . . . Non-combat . | . . . . . Combat . | . . . . . Robot Hacks Applied . | . . . . . Relay Couplers Released . | . . . . . Robots Rewired . | . . . . . Allies Hacked . | . . . . . Hacks Repelled . | . . . . . Allies | -11 -10 -10 -10 -9 -------- Run | Scr Mat Min Exi Min Total Allies 3 | . . 3 . . Largest Group 3 | . . 3 3 3 Highest-Rated Group 40 | . . 40 40 40 Highest-Rated Ally 16 | . . 16 16 16 Total Orders . | . . . . . Ally Attacks 20 | . . 6 . 14 Total Damage 153 | . . 71 . 82 Kills 3 | . . 1 . 2 Allies Corrupted . | . . . . . Allies Melted . | . . . . . Intel | -11 -10 -10 -10 -9 ------- Run | Scr Mat Min Exi Min Robot Analysis Total . | . . . . . Derelict Logs Recovered 1 | . . 1 . . Drone Launches . | . . . . . Drone Recoveries . | . . . . . Exploration | -11 -10 -10 -10 -9 ------------- Run | Scr Mat Min Exi Min Turns Passed 1553 | 47 558 742 44 162 Spaces Moved 1151 | 36 395 587 29 104 Core 4 | 4 . . . . Treads . | . . . . . Legs 1147 | 32 395 587 29 104 Wheels . | . . . . . Hover . | . . . . . Flight . | . . . . . Fastest Speed 50 | 50 120 120 120 120 Average Speed 119 | 112 120 120 120 120 Slowest Speed 120 | 120 120 120 120 120 Overloaded Moves . | . . . . . Propulsion Burnouts . | . . . . . Robots Hopped . | . . . . . Cave-ins Triggered . | . . . . . Exploration Rate (%) 38 | 3 67 96 8 18 Regions Visited 4 Branch Regions 3 Pre-discovered Areas 2 | . . 2 . . Known Exits Taken 1 | . 1 . . . Unknown Exits Taken 3 | 1 . 1 1 . Scrap Searched 1 | . . 1 . . Spaces Dug . | . . . . . Terrain Destroyed 3 | . 3 . . . Melee . | . . . . . Projectile . | . . . . . AOE 3 | . 3 . . . Terrain Rammed . | . . . . . Walls Destroyed . | . . . . . Machines Disabled . | . . . . . Actions | -11 -10 -10 -10 -9 --------- Run | Scr Mat Min Exi Min Total 1254 | 40 437 619 38 120 Wait 55 | . 15 27 10 3 Move 1147 | 35 394 586 28 104 Hop . | . . . . . Pick Up . | . . . . . Fast Attach 9 | 5 3 1 . . Attach . | . . . . . Detach . | . . . . . Swap 1 | . . 1 . . Drop . | . . . . . Fire 36 | . 21 2 . 13 Melee . | . . . . . Ram . | . . . . . Kick . | . . . . . Crush . | . . . . . Escape Stasis . | . . . . . Rewire . | . . . . . Trap . | . . . . . Miscellaneous 6 | . 4 2 . . Route ------- -11/Scrapyard -10/Materials (discovered 3 exits: [*Mat x2] / *Min) -10/Mines (discovered 3 exits: [*Mat x2] / [*Exi]) -10/Exiles -9/Mines History --------- Turn | Location | Event 1 | -11/Scrapyard | Upgraded with Propulsion slot (x1) 1 | -11/Scrapyard | Upgraded with Utility slot (x2) 1 | -11/Scrapyard | Upgraded with Weapon slot (x1) 6 | -11/Scrapyard | Discovered new exit (range 15) 48 | -11/Scrapyard | Entered Materials 63 | -10/Materials | Identified exit to Mines 317 | -10/Materials | Build established: Mutant 424 | -10/Materials | Discovered new exit (range 16) 540 | -10/Materials | Discovered new exit (range 11) 606 | -10/Materials | Entered Mines 608 | -10/Mines | Reached level 2 621 | -10/Mines | Learned location of Storage (-7) 735 | -10/Mines | Deemed a non-threat by the Exiles lab entrance 736 | -10/Mines | Discovered new exit (range 5) 811 | -10/Mines | Discovered new exit (range 12) 822 | -10/Mines | Assisted by bots powering up and referring to "LRC-V3" 1068 | -10/Mines | Discovered new exit (range 5) 1105 | -10/Mines | Found a hidden stash of uninstalled traps 1307 | -10/Mines | Upgraded with Utility slot (x1) 1348 | -10/Mines | Entered Exiles 1348 | -10/Exiles | Accompanied by 3 allies 1366 | -10/Exiles | Discovered new exit (range 14) 1392 | -10/Exiles | Entered Mines 1392 | -9/Mines | Accompanied by 3 allies 1477 | -9/Mines | Assembled infested the area 1482 | -9/Mines | Assisted by a Guerilla fighting off Assembled 1539 | -9/Mines | Core integrity fell below 50% 1549 | -9/Mines | Core integrity fell below 20% 1554 | -9/Mines | Destroyed by D-53 Grenadier with Mini Grenade Launcher Last Messages --------------- 01510_ as-81515 destroyed. 01510_ as-54298 destroyed. 01510_ as-58646 destroyed. 01512_ as-81344 sneak attacks. 01512_ T-07 Excavator system corrupted by crushing effect. 01512_ T-07 Excavator knocked back. 01513_ T-07 Excavator system terminally corrupted. 01513_ as-52721 destroyed. 01513_ as-32155 destroyed. 01513_ as-46059 destroyed. 01513_ as-59399 destroyed. 01513_ as-50076 destroyed. 01515_ as-81344 destroyed. 01515_ as-68125 destroyed. 01522_ The unstable cave ceiling collapses. 01535_ D-53 Grenadier destroyed. 01538_ K-01 Serf collects debris. 01542_ EM Pulse Gun destroyed. 01548_ Seismic Survey Station disabled. 01550_ The unstable cave ceiling collapses. Map ----- +----------------------------------------------------+ | | | | | | | | | | | | | | | | | | | | | | | | | | | | | | | | | | | ???????????????????????????????????????????????? | | ???????????????????????????????????????????????? | | ??######?????????????????#############?????????? | | ?## ##??####?????####?# #?????????? | | ?# #### ##???## # """ """ #?????????? | | ?# ##?## """ """ #?????????? | | ?## ### "" """ #?????????? | | ??####### ## # #?????????? | | ????????# d @ #?????????? | | ???????# ### # = #?????????? | | ??????# #?# # ##########?????????? | | ?????# ##?# ## # ##??????????????????? | | ????# ##??# ## ##???????????????????? | | ????# ##???# ## ######????????????????????? | | ????## #????? ### ## #?????????????????????? | | ?????###????? ##?# #?????????????????????? | | ???????????? ##?# # #????????????????????? | | ????????????###???# #????????????????????? | | ????????????????? #????????????????????? | | ????????????????# #???????????????????? | | ????????????????# #??????????????????? | | ???????????????## #??????????????????? | | ???????????????# #??????????????????? | | ???????????????# % #?????????????????? | | ???????????????#% #?????????????????? | | ??????????????#" #????????????????? | | ????????? =%= #???????????????? | | ????? % ## #??????????????? | | ?????? ##### ###?###### #??????????????? | | ?????? ??????# ?????????? #?????????????? | | ???????????????#??????????? % #?????????????? | | ????????????????????????????# "%?????????????? | | ??????????????????????????????#####????????????? | +----------------------------------------------------+ Best States ------------- Heat Dissipation 31 Energy Generation 17 Energy Capacity 265 Matter Stores 300 Matter Capacity 300 Sight Range 16 Robot Scan Range 10 Terrain Scan Density 60 Evasion (%) 40 Targeting Accuracy 5 Item Schematics ----------------- None Robot Schematics ------------------ None Fabricated ------------ Nothing Alien Tech Used ----------------- None Achievements -------------- None Challenges ------------ None RPGLIKE | -11 -10 -10 -10 -9 --------- Run | Scr Mat Min Exi Min Levels Raised 1 | . . 1 . . XP Earned 5641 | 3000 1095 746 200 600 XP Spent 4400 | 3000 . 1400 . . Upgrades 9 | 7 . 2 . . Propulsion Slot 1 | 1 . . . . Utility Slot 3 | 2 . 1 . . Weapon Slot 1 | 1 . . . . Heat Dissipation 1 | 1 . . . . Energy Generation 1 | . . 1 . . Inventory Capacity 1 | 1 . . . . Ranged Accuracy 1 | 1 . . . . Protomatter Created 143 | . 59 52 . 32 Integrity Restored 119 | . 79 40 . . Core 119 | . 79 40 . . Protomatter Decayed 121 | . 40 38 . 43 Game ------ Seed ScatterChargeFacilitator Manual? 0 Play Time 00:12:18 Cumulative 25.7 hours Start 2020.11.04 @ 20:14:07 End 2020.11.04 @ 20:24:37 Sessions 1 Manual Loads 0 Difficulty Rogue Special Mode Winter2019/RPGLIKE Game No. 26 Rogue 26 Adventurer 0 Explorer 0 Win Type - Total 0 Types 0/0/0/0/0/0/0/0/0 Lore% 41 Gallery% 43 Achievement% 38 Wizard Run 0 Options --------- ASCII 0 Keyboard 0 Movement Numpad Keybinds 0 Fullscreen 1 Font 18/SmallcapsGlow Map View 76x50 Tactical HUD 1 Map Filters NONE Filters NONE Steam 1 RUN: b2a8de72-caf4-4e83-8fc8-9133b3179db2